bitfinex/quotes_ETHUSD_20250602
["timestamp","ask_amount","ask_price","bid_price","bid_amount"]
[1748854961240,19.97534621,2490.2,2490.1,0.21585753]
[1748854961439,26.30532749,2490.2,2490.1,0.21585753]
[1748854965671,19.64432749,2490.2,2490.1,0.21585753]
[1748854965856,23.89232749,2490.2,2490.1,0.21585753]
[1748854966054,19.64432749,2490.2,2490.1,0.21585753]
[1748854966954,1.10895982,2490.2,2490.1,0.21585753]
[1748854967262,15.48233492,2490.4,2490.1,0.21585753]
[1748854967441,8.0,2490.3,2490.1,0.21585753]
[1748854967959,7.48233492,2490.4,2490.1,0.21585753]
[1748854968268,6.80212265,2490.3,2490.1,0.21585753]
[1748854968921,9.21147921,2490.3,2490.1,0.21585753]
[1748854969160,0.88895308,2490.2,2490.1,0.21585753]
[1748854969584,12.0732981,2490.2,2490.1,0.21585753]
[1748854969949,11.2983981,2490.2,2490.1,0.21585753]
[1748854970495,12.6257981,2490.2,2490.1,0.21585753]
[1748854970695,15.0327981,2490.2,2490.1,0.21585753]
[1748854970996,15.0327981,2490.2,2490.1,0.12776661]
[1748854971497,19.2877981,2490.2,2490.1,0.12776661]
[1748854971850,15.0327981,2490.2,2490.1,0.12776661]
[1748854972083,14.47135308,2490.2,2490.1,0.12776661]
[1748854972246,16.8807981,2490.2,2490.1,0.12776661]
[1748854972455,0.7858,2489.6,2489.1,0.01]
[1748854972790,17.76253563,2489.2,2489.1,0.01]
[1748854972946,22.98431159,2489.2,2489.1,0.01]
[1748854973290,18.16689861,2489.2,2489.1,0.01]
[1748854973472,8.0,2489.2,2489.1,0.01]
[1748854973891,14.80212265,2489.2,2489.1,0.01]
[1748854974263,20.96213563,2489.2,2489.1,0.01]
[1748854974992,21.36178388,2489.2,2489.1,0.01]
[1748854975689,2.41114746,2488.5,2488.2,1.9202]
[1748854975891,10.41114746,2488.5,2488.2,0.7782]
[1748854976067,8.0,2488.5,2488.2,0.7782]
[1748854976262,8.0,2488.5,2488.1,0.01]
[1748854976696,8.0,2488.8,2488.3,2.41127674]
[1748854976991,8.0,2488.8,2488.1,2.42139953]
[1748854976992,9.21318377,2488.6,2488.1,0.01]
[1748854977167,3.38744926,2488.5,2488.1,0.01]
[1748854977697,6.80212265,2488.6,2488.1,0.01]
[1748854977698,10.41083476,2488.8,2488.2,2.41132452]
[1748854978006,8.0,2488.8,2488.2,0.7961]
[1748854978286,8.0,2488.8,2488.3,2.41128481]
[1748854978476,8.0,2488.8,2488.2,0.7961]
[1748854978790,8.0,2488.8,2488.4,2.41112232]
[1748854979112,8.0,2488.8,2488.3,2.41128481]
[1748854979255,8.0,2488.8,2488.2,0.7961]
[1748854979457,8.0,2489.1,2488.2,1.23476464]
[1748854979651,0.39964825,2489.2,2489.0,0.7703]
[1748854979891,6.80212265,2489.6,2489.1,2.41050982]
[1748854980194,0.33522107,2489.6,2489.1,2.41048341]
[1748854980395,0.33522107,2489.6,2489.1,0.31807834]
[1748854980606,0.33522107,2489.6,2489.4,2.41015693]
[1748854980825,6.80212265,2489.8,2489.4,2.41015693]
[1748854981112,8.0,2489.7,2489.4,2.41014688]
[1748854981313,6.80212265,2489.8,2489.1,2.41048913]
[1748854981468,0.33522107,2489.6,2489.3,2.41025499]
[1748854981678,0.33522107,2489.6,2489.4,2.41018868]
[1748854982020,0.33522107,2489.6,2489.4,2.41020824]
[1748854982192,0.33522107,2489.6,2489.5,2.41012251]
[1748854982570,0.72756694,2489.6,2489.5,2.41012251]
[1748854982769,0.72756694,2489.6,2489.5,3.22122251]
[1748854982991,0.33522107,2489.6,2489.5,4.95336584]
[1748854983585,0.33522107,2489.6,2489.5,3.22122251]
[1748854983920,0.33522107,2489.6,2489.4,2.41014717]
[1748854983921,0.73371241,2489.6,2489.4,2.41014717]
[1748854984106,0.33522107,2489.6,2489.2,3.57938772]
[1748854984438,0.73833155,2489.6,2489.5,2.41012251]
[1748854984636,0.73833155,2489.6,2489.3,2.41024285]
[1748854984637,0.73833155,2489.6,2489.4,2.41018834]
[1748854984919,0.73833155,2489.6,2489.3,2.41028882]
[1748854984920,0.33522107,2489.6,2489.3,2.41028882]
[1748854985086,0.33522107,2489.6,2489.5,2.41012251]
[1748854985513,0.33522107,2489.6,2489.4,2.41018114]
[1748854985720,8.33522107,2489.6,2489.1,0.7994]
[1748854986020,9.81341714,2489.6,2489.1,3.20987086]
[1748854986395,8.0,2489.3,2488.7,0.783]
[1748854986600,8.0,2489.3,2488.9,2.41064508]
[1748854986925,8.0,2489.3,2488.8,2.41075993]
[1748854987318,8.0,2489.3,2489.0,2.41056452]
[1748854987509,8.0,2489.3,2488.7,0.783]
[1748854987510,0.8179,2489.2,2488.7,2.41087272]
[1748854987709,0.8179,2489.2,2488.8,2.41077259]
[1748854988019,0.8179,2489.2,2488.9,2.41069495]
[1748854988432,9.48021227,2489.3,2488.9,2.41069495]
[1748854988735,9.87415692,2489.6,2489.0,0.8112]
[1748854988958,0.39596085,2489.6,2489.5,2.41012251]
[1748854989242,8.0,2489.8,2489.6,2.41000361]
[1748854989551,8.0,2489.8,2489.5,2.41008537]
[1748854989696,1.52275277,2489.8,2489.5,2.41008537]
[1748854989899,14.80212265,2489.8,2489.4,2.41019231]
[1748854990445,14.80212265,2489.8,2489.5,2.41010996]
[1748854990644,14.80212265,2489.8,2489.6,2.41001843]
[1748854991010,8.0,2489.8,2489.7,2.4099289]
[1748854991214,8.0,2489.8,2489.5,2.41011903]
[1748854991414,8.40926652,2489.8,2489.7,2.4099289]
[1748854992032,8.40926652,2489.8,2489.5,3.23048173]
[1748854992437,8.0,2489.7,2489.5,3.23051162]
[1748854992617,8.40926652,2489.8,2489.6,2.4100257]
[1748854993172,8.40926652,2489.8,2489.7,2.4099289]
[1748854994077,8.40926652,2489.8,2489.6,2.40998554]
[1748854994364,1.50331227,2490.4,2489.6,7.29923218]
[1748854994653,6.80212265,2490.6,2490.1,3.19259972]
[1748854994859,8.0,2490.5,2490.1,0.7831]
[1748854995159,0.33522107,2490.4,2490.1,0.7831]
[1748854995354,6.80212265,2490.3,2489.8,1.169]
[1748854995659,8.33522107,2490.2,2489.8,4.33538428]
[1748854995859,0.33522107,2490.1,2489.9,2.40973309]
[1748854996033,0.33522107,2490.1,2489.8,3.1664067]
[1748854996555,0.73902211,2490.1,2490.0,2.40963855]
[1748854996761,0.33522107,2490.1,2490.0,2.40963855]
[1748855000271,0.33522107,2490.7,2490.6,2.40897453]
[1748855000563,0.33522107,2490.7,2490.4,2.40925152]
[1748855000564,0.33522107,2490.7,2490.5,2.40910698]
[1748855000749,0.33522107,2490.7,2490.6,2.40905805]
[1748855000930,0.33522107,2490.7,2490.5,2.40910908]
[1748855001124,0.33522107,2490.7,2490.4,2.4092246]
[1748855001469,0.72840933,2490.7,2490.4,2.4092246]
[1748855001666,0.33522107,2490.7,2490.4,2.4092246]
[1748855001863,0.33522107,2490.7,2490.4,2.40925152]
[1748855002362,0.33522107,2490.7,2490.6,2.40905805]
[1748855002522,0.33522107,2490.7,2490.6,3.57805805]
[1748855003375,0.47180641,2490.8,2490.7,2.40896133]
[1748855003574,0.47180641,2490.8,2490.7,3.18016133]
[1748855006549,0.47180641,2490.8,2490.7,4.34316133]
[1748855006881,0.47180641,2490.8,2490.7,1.163]
[1748855007538,0.47180641,2490.8,2490.5,2.40912225]
[1748855007738,0.47180641,2490.8,2490.5,3.57212225]
[1748855007937,2.00019932,2490.8,2490.4,3.16012321]
[1748855008141,8.7696,2490.7,2490.3,3.57234201]
[1748855008468,8.7696,2490.7,2490.2,4.36581543]
[1748855008642,11.17856806,2490.7,2490.2,3.57241543]
[1748855008838,8.0,2490.6,2490.2,1.163]
[1748855009045,9.87697993,2490.6,2490.2,1.163]
[1748855010041,16.67910258,2490.6,2490.2,1.163]
[1748855010283,16.67910258,2490.6,2490.1,8.675]
[1748855010284,19.08816297,2490.6,2490.1,8.675]
[1748855010473,7.35212265,2490.3,2489.5,1.936]
[1748855010779,1.77613742,2490.2,2489.8,2.40977003]
[1748855010978,1.77613742,2490.2,2489.9,2.40971309]
[1748855011885,1.77613742,2490.2,2489.9,2.40968301]
[1748855012084,1.77613742,2490.2,2489.9,2.40964096]
[1748855012380,1.77613742,2490.2,2489.8,2.40979661]
[1748855012678,6.80212265,2490.3,2489.9,2.4096581]
[1748855013607,6.80212265,2490.3,2490.0,2.40963342]
[1748855013811,6.80212265,2490.3,2490.0,2.40957782]
[1748855014183,6.80212265,2490.3,2489.6,1.163]
[1748855014506,6.80212265,2490.3,2490.0,2.40957602]
[1748855014707,0.7712,2490.2,2489.8,2.40980044]
[1748855015126,0.7712,2490.2,2489.7,2.40990819]
[1748855015429,0.7712,2490.2,2489.8,2.40974984]
[1748855015774,0.7712,2490.2,2490.0,2.40956245]
[1748855016026,0.7933,2490.5,2490.1,2.4094492]
[1748855016338,8.0,2490.4,2490.2,2.40940479]
[1748855016626,8.0,2490.4,2489.9,2.40966964]
[1748855016828,8.0,2490.4,2489.9,2.40966429]
[1748855017146,8.0,2490.4,2490.0,2.40961661]
[1748855017287,12.64442078,2490.4,2489.8,2.40978192]
[1748855017479,12.64442078,2490.4,2489.9,2.40971868]
[1748855017671,10.23511661,2490.4,2489.9,2.40971868]
[1748855017889,10.23511661,2490.4,2490.0,2.40963219]
[1748855018088,10.23511661,2490.4,2490.1,2.40953323]
[1748855018274,0.7933,2490.5,2490.1,2.40953323]
[1748855018486,8.0,2490.6,2490.4,2.40925152]
[1748855018691,8.0,2490.6,2490.3,2.40931654]
[1748855019317,9.24390641,2490.8,2490.3,2.40929402]
[1748855019517,9.24390641,2490.8,2490.4,2.40924818]
[1748855019715,1.59237239,2490.7,2490.3,2.40931075]
[1748855019924,1.59237239,2490.7,2490.4,2.40920632]
[1748855020094,0.47180641,2490.8,2490.4,2.40925152]
[1748855020285,0.47180641,2490.8,2490.6,2.40904202]
[1748855020796,0.47180641,2490.8,2490.5,2.40912074]
[1748855021390,0.47180641,2490.8,2490.5,2.40914821]
[1748855021990,0.47180641,2490.8,2490.6,2.40898489]
[1748855022314,0.47180641,2490.8,2490.5,2.4091176]
[1748855022486,1.20019932,2490.8,2490.5,2.4091176]
[1748855022686,1.20019932,2490.8,2490.4,2.40920271]
[1748855022936,1.20019932,2490.8,2490.4,2.40925152]
[1748855023129,1.20019932,2490.8,2490.5,2.40912705]
[1748855023423,0.754,2490.6,2490.2,3.57240974]
[1748855024002,0.754,2490.6,2490.3,2.40934033]
[1748855024847,0.754,2490.6,2490.2,1.163]
[1748855025019,1.20019932,2490.8,2490.2,1.82471516]
[1748855025020,9.28160641,2490.8,2490.2,1.82471516]
[1748855025224,8.47180641,2490.8,2490.6,2.40904407]
[1748855025560,0.47180641,2490.8,2490.2,1.163]
[1748855025722,0.47180641,2490.8,2490.7,2.40896133]
[1748855029250,0.47180641,2490.8,2490.6,3.18351747]
[1748855029406,0.47180641,2490.8,2490.6,3.18348855]
[1748855029809,0.47180641,2490.8,2490.7,2.40896133]
[1748855033268,0.47180641,2490.8,2490.7,2.96821231]
[1748855035183,0.47180641,2490.8,2490.7,7.20921231]
[1748855035338,0.47180641,2490.8,2490.7,6.64996133]
[1748855040491,0.47180641,2490.8,2490.7,2.40896133]
[1748855040676,0.47180641,2490.8,2490.7,3.55396133]
[1748855040997,0.47180641,2490.8,2490.7,2.40896133]
[1748855041189,0.47180641,2490.8,2490.7,3.55396133]
[1748855041580,0.47180641,2490.8,2490.7,3.59410448]
[1748855041991,0.47180641,2490.8,2490.7,4.65472662]
[1748855042577,0.47180641,2490.8,2490.7,3.50972662]
[1748855042891,0.47180641,2490.8,2490.7,3.55396133]
[1748855044164,0.47180641,2490.8,2490.7,3.59410717]
[1748855044683,0.47180641,2490.8,2490.7,3.55396133]
[1748855045199,0.47180641,2490.8,2490.7,3.5941036]
[1748855045402,0.47180641,2490.8,2490.7,3.55396133]
[1748855045970,0.47180641,2490.8,2490.7,4.65041231]
[1748855048111,0.47180641,2490.8,2490.7,3.55396133]
[1748855048319,0.47180641,2490.8,2490.7,1.145]
[1748855048483,0.47180641,2490.8,2490.6,2.40900409]
[1748855048811,7.27392906,2490.8,2490.5,1.145]
[1748855049596,11.19489083,2490.7,2490.5,1.145]
[1748855049785,1.84688199,2490.6,2490.1,3.55454069]
[1748855050178,1.84688199,2490.6,2490.1,1.145]
[1748855050486,8.0,2490.5,2490.1,3.55452681]
[1748855050681,8.0,2490.5,2490.1,1.145]
[1748855052419,1.84688199,2490.6,2490.1,3.55452703]
[1748855052622,0.50417703,2490.5,2490.1,3.55452703]
[1748855053795,0.50417703,2490.5,2490.2,2.4094389]
[1748855054514,0.50417703,2490.5,2490.1,3.55450313]
[1748855054724,0.50417703,2490.5,2490.1,1.145]
[1748855054939,4.69280641,2490.8,2490.7,2.40896133]
[1748855054940,0.47180641,2490.8,2490.7,2.40896133]
[1748855055235,0.47180641,2490.8,2490.5,2.409111]
[1748855056211,0.47180641,2490.8,2490.3,4.217]
[1748855056463,0.47180641,2490.8,2490.7,2.40896133]
[1748855057254,0.47180641,2490.8,2490.5,3.55413487]
[1748855057664,0.47180641,2490.8,2490.7,2.40896133]
[1748855058024,0.47180641,2490.8,2490.7,3.21036133]
[1748855058917,0.47180641,2490.8,2490.7,7.46750589]
[1748855059115,0.47180641,2490.8,2490.7,8.56966116]
[1748855059361,0.47180641,2490.8,2490.7,8.5295166]
[1748855061465,0.47180641,2490.8,2490.7,17.0795166]
[1748855061618,0.01,2490.9,2490.8,11.21216462]
[1748855061819,0.01,2490.9,2490.8,12.8229498]
[1748855062027,0.01,2490.9,2490.8,19.62507245]
[1748855062237,0.01,2490.9,2490.8,19.6244751]
[1748855062677,0.01,2490.9,2490.8,20.1744751]
[1748855062960,0.01,2491.9,2491.8,3.2011979]
[1748855063162,0.01,2491.9,2491.8,4.3461979]
[1748855063319,0.01,2491.9,2491.8,4.78486254]
[1748855066564,0.01,2491.9,2491.8,9.00086254]
[1748855070588,0.01,2491.9,2491.8,15.80298519]
[1748855071591,0.01,2491.9,2491.8,16.35298519]
[1748855072195,0.01,2491.9,2491.8,24.35298519]
[1748855073881,0.01,2491.9,2491.8,29.10298519]
[1748855075323,0.01,2491.9,2491.8,29.08798519]
[1748855078186,0.01,2491.9,2491.8,29.89061783]
[1748855082423,0.01,2491.9,2491.8,25.67661783]
[1748855082739,0.01,2491.9,2491.8,22.53749518]
[1748855083248,0.01,2491.9,2491.8,26.07807387]
[1748855084924,0.01,2491.9,2491.8,22.53749518]
[1748855085842,0.01,2491.9,2491.8,17.78749518]
[1748855086135,0.01,2491.9,2491.8,21.32807387]
[1748855087102,0.01,2491.9,2491.8,21.87807387]
[1748855089351,0.01,2491.9,2491.8,22.3546707]
[1748855091454,0.01,2491.9,2491.8,21.87807387]
[1748855092117,0.01,2491.9,2491.8,22.35732447]
[1748855092518,0.01,2491.9,2491.8,22.35733207]
[1748855093561,0.01,2491.9,2491.8,21.87807387]
[1748855093712,0.01,2491.9,2491.8,16.53307387]
[1748855094054,0.01,2491.9,2491.8,21.87707387]
[1748855097552,0.01,2491.9,2491.8,26.62707387]
[1748855098240,0.7688,2492.8,2492.7,3.20937136]
[1748855098444,0.7688,2492.8,2492.7,4.34037136]
[1748855098815,0.7799,2492.7,2492.0,1.131]
[1748855099055,3.55057869,2492.9,2492.0,1.131]
[1748855099056,0.7799,2492.4,2492.3,3.20985044]
[1748855099620,0.7799,2492.4,2492.1,3.21003028]
[1748855099821,8.01,2492.9,2492.1,3.21003028]
[1748855099822,0.7817,2492.2,2492.1,1.131]
[1748855100123,0.7817,2492.2,2492.1,4.34114405]
[1748855100949,0.7817,2492.2,2492.1,1.131]
[1748855101757,0.7846,2492.1,2491.8,8.664]
[1748855101977,1.25320375,2492.2,2491.0,0.48067799]
[1748855101978,0.7846,2491.4,2491.0,0.48067799]
[1748855102262,0.7896,2491.2,2491.1,1.131]
[1748855102920,12.39867371,2491.2,2491.1,1.131]
[1748855103116,0.777,2490.9,2490.6,1.131]
[1748855103329,8.41036993,2491.2,2490.6,1.131]
[1748855103330,4.31757869,2490.7,2490.6,1.131]
[1748855103555,4.31757869,2490.7,2490.3,3.21245764]
[1748855103764,4.31757869,2490.7,2490.4,1.131]
[1748855104061,0.777,2490.7,2490.6,3.21207741]
[1748855104238,0.777,2490.7,2490.6,3.25222239]
[1748855104561,8.7798,2491.1,2490.9,3.21165305]
[1748855104760,8.55,2490.9,2490.1,8.675]
[1748855104960,1.98885787,2490.8,2490.6,3.21201255]
[1748855105161,0.7798,2490.8,2490.7,3.21194844]
[1748855105362,0.8027,2491.0,2490.7,3.21194844]
[1748855105530,0.8027,2491.0,2490.8,1.131]
[1748855105725,8.8027,2491.0,2490.1,11.88763453]
[1748855106035,0.8027,2490.9,2490.8,3.21181949]
[1748855106238,0.8027,2490.9,2490.7,3.21189823]
[1748855106444,0.8027,2490.9,2490.8,3.21181949]
[1748855106759,0.8027,2490.9,2490.6,1.131]
[1748855106937,0.8027,2490.9,2490.7,3.25207892]
[1748855107131,0.8027,2490.9,2490.6,3.21204336]
[1748855107454,0.8027,2490.9,2490.6,3.21199185]
[1748855107658,0.8027,2490.9,2490.8,3.21181949]
[1748855108781,0.8027,2490.9,2490.7,3.21189384]
[1748855108932,0.8027,2490.9,2490.6,1.131]
[1748855109127,0.8303,2490.7,2490.6,4.34307741]
[1748855109530,0.8303,2490.7,2490.6,1.131]
[1748855109844,0.8009,2490.6,2490.4,3.21233315]
[1748855110461,0.8009,2490.6,2490.3,1.132]
[1748855110662,0.8009,2490.6,2490.3,3.2124201]
[1748855110861,0.8009,2490.6,2490.2,4.3445158]
[1748855111075,8.8009,2490.6,2490.3,3.21245987]
[1748855111254,1.06857734,2490.5,2490.2,1.132]
[1748855111455,0.7521,2490.4,2490.1,8.675]
[1748855111661,0.7521,2490.4,2490.1,9.807]
[1748855112248,0.7521,2490.4,2490.1,13.0197219]
[1748855112651,0.7521,2490.4,2490.1,9.807]
[1748855113051,0.7521,2490.4,2490.1,13.01971735]
[1748855113250,0.7521,2490.4,2490.1,13.01967129]
[1748855113455,0.7521,2490.4,2490.3,3.21246436]
[1748855113773,0.7521,2490.4,2490.3,3.25261882]
[1748855113934,0.7709,2491.1,2491.0,3.21156162]
[1748855114747,0.7709,2491.1,2490.9,3.21162275]
[1748855114972,0.7709,2491.1,2490.9,1.132]
[1748855115336,0.7709,2491.1,2490.9,4.34367951]
[1748855115658,0.7709,2491.1,2490.9,1.132]
[1748855115845,0.87709,2491.0,2490.8,4.34373684]
[1748855116045,0.87709,2491.0,2490.9,3.21169055]
[1748855116258,0.7709,2491.1,2491.0,3.21156162]
[1748855122095,8.794,2491.5,2491.4,3.21104599]
[1748855122267,0.69299898,2492.7,2492.0,3.21018906]
[1748855122268,0.794,2492.1,2492.0,3.21018906]
[1748855124268,8.794,2492.1,2491.9,4.34231984]
[1748855124567,8.794,2492.1,2491.9,1.132]
[1748855124767,1.5600734,2492.0,2491.9,1.132]
[1748855124994,1.5600734,2492.0,2491.7,3.21060633]
[1748855125170,1.5600734,2492.0,2491.9,3.2104017]
[1748855125566,8.794,2492.1,2491.9,3.2104017]
[1748855126471,0.794,2492.1,2492.0,3.21027287]
[1748855128599,0.794,2492.1,2491.9,3.21034666]
[1748855128769,6.80673397,2492.0,2491.4,1.131]
[1748855128971,6.80673397,2492.0,2491.6,3.21066003]
[1748855129184,8.0,2491.9,2491.6,3.21076195]
[1748855129385,8.0,2491.9,2491.5,3.21089426]
[1748855129787,0.7725,2491.8,2491.5,3.21089426]
[1748855130322,0.7725,2491.8,2491.6,3.21072058]
[1748855130624,0.7725,2491.8,2491.6,3.21066533]
[1748855130929,0.7725,2491.8,2491.7,3.21065938]
[1748855131089,0.7836,2492.0,2491.9,3.21038482]
[1748855131622,0.4051164,2492.1,2492.0,3.21027287]
[1748855131768,0.7725,2492.2,2492.0,3.21027287]
[1748855132615,0.7725,2492.2,2491.6,3.96363504]
[1748855132616,10.07115,2492.2,2491.4,0.7516]
[1748855132804,0.7787,2491.9,2491.6,3.21073383]
[1748855133301,0.7787,2491.9,2491.6,3.21078032]
[1748855134019,0.7787,2491.9,2491.8,3.21053054]
[1748855136519,0.7787,2491.9,2491.7,3.21063019]
[1748855136717,8.0,2491.7,2491.4,4.34204584]
[1748855136904,8.0,2491.7,2491.4,1.131]
[1748855137820,16.32670496,2491.7,2491.4,1.131]
[1748855137998,0.8281,2491.6,2491.4,1.131]
[1748855138495,11.21091711,2491.5,2491.4,1.131]
[1748855138704,12.51321711,2491.5,2491.4,1.131]
[1748855139021,8.0,2491.0,2490.6,1.131]
[1748855139226,11.21165348,2491.0,2490.6,1.131]
[1748855139423,0.7993,2490.9,2490.6,1.131]
[1748855139810,4.01101691,2490.9,2490.6,1.131]
[1748855140028,0.7993,2490.9,2490.6,1.131]
[1748855140232,0.7596,2491.7,2490.6,6.1373]
[1748855140441,7.68269397,2491.6,2490.7,0.61373]
[1748855140738,11.21099863,2491.5,2490.9,3.21169055]
[1748855140943,12.22,2491.5,2490.8,1.131]
[1748855141092,12.22,2491.5,2491.1,3.211374]
[1748855141426,12.22,2491.5,2491.1,3.21143235]
[1748855141579,10.70838804,2491.5,2490.8,4.34280218]
[1748855141779,4.9796,2491.7,2491.4,3.21103049]
[1748855142020,0.7596,2491.7,2490.9,3.21169055]
[1748855142228,0.7596,2491.7,2491.6,3.21078824]
[1748855142731,0.7596,2491.7,2491.3,3.21104648]
[1748855143019,8.7596,2491.7,2491.3,3.21104648]
[1748855143195,14.26985769,2491.7,2491.3,3.21104648]
[1748855143398,11.05918959,2491.7,2491.4,3.21096058]
[1748855144015,8.7596,2491.7,2491.5,3.21083539]
[1748855144201,8.7596,2491.7,2491.5,3.21084931]
[1748855144399,3.21036331,2492.0,2491.6,3.21078824]
[1748855144400,0.7592,2492.0,2491.6,3.21078824]
[1748855144685,1.16560684,2492.2,2491.9,3.21033305]
[1748855144920,0.7592,2492.2,2491.6,0.04013163]
[1748855145161,0.7592,2492.2,2491.9,3.21030605]
[1748855145372,0.7592,2492.2,2491.8,3.21042317]
[1748855145528,2.34043663,2492.2,2491.8,3.21042317]
[1748855146278,2.34043663,2492.2,2491.9,3.21039849]
[1748855146799,2.34043663,2492.2,2491.7,3.21065938]
[1748855146800,2.34043663,2492.2,2491.8,3.21050891]
[1748855147086,8.0,2492.1,2491.9,3.21039729]
[1748855147686,14.80673397,2492.1,2491.5,1.131]
[1748855147858,8.0,2491.9,2491.5,4.34184069]
[1748855148949,8.0,2491.9,2491.6,3.21078518]
[1748855149887,8.0,2491.9,2491.2,1.131]
[1748855149888,8.0,2491.6,2491.2,1.131]
[1748855150188,10.82012135,2491.8,2491.3,3.21112473]
[1748855150391,9.40306291,2491.7,2491.4,3.21104477]
[1748855150595,8.0,2491.7,2491.4,3.21104477]
[1748855150752,8.0,2491.7,2491.2,4.3422727]
[1748855151095,10.01771007,2491.5,2491.1,4.34242827]
[1748855151449,10.01771007,2491.5,2490.9,3.21168244]
[1748855151450,8.753,2491.4,2490.9,1.131]
[1748855151754,11.96412106,2491.4,2490.9,4.34261662]
[1748855151979,14.58369083,2491.4,2490.9,4.34261662]
[1748855152562,8.753,2491.4,2491.0,3.21150292]
[1748855152768,8.753,2491.4,2491.2,3.211282]
[1748855153096,0.753,2491.4,2491.3,3.21117488]
[1748855153419,0.75,2491.6,2491.3,3.21117488]
[1748855153751,0.75,2491.6,2491.2,3.21123547]
[1748855153980,6.58007761,2491.6,2491.1,3.21136897]
[1748855154206,8.0,2491.4,2491.1,3.21136897]
[1748855154752,11.21109525,2491.4,2490.9,3.21161722]
[1748855155079,3.21120078,2491.3,2490.8,4.34274618]
[1748855155251,8.0,2491.1,2490.8,1.131]
[1748855155689,8.0,2491.1,2490.7,3.21187232]
[1748855156297,10.62643912,2491.1,2490.6,4.34301292]
[1748855156591,10.62643912,2491.1,2490.7,3.21193823]
[1748855157489,8.0,2490.9,2490.7,3.21193823]
[1748855157813,3.21123023,2491.3,2490.6,1.131]
[1748855157814,13.043,2491.5,2491.1,3.21135475]
[1748855158156,16.25393564,2491.5,2491.1,3.21135475]
[1748855158356,8.0,2491.3,2491.0,3.21151268]
[1748855158677,0.829,2491.1,2490.7,3.21184181]
[1748855158985,0.829,2491.1,2490.6,4.34307313]
[1748855159185,0.829,2491.1,2490.6,4.34303511]
[1748855159568,0.829,2491.1,2490.9,3.21159109]
[1748855159781,4.214,2491.3,2491.0,3.21148176]
[1748855159955,6.15670834,2491.3,2491.0,3.21148176]
[1748855160656,6.15670834,2491.3,2490.7,0.04014646]
[1748855160657,0.791,2491.4,2490.7,3.2520928]
[1748855160964,0.791,2491.4,2491.1,3.21136065]
[1748855161370,0.791,2491.4,2491.0,3.21148736]
[1748855161590,0.791,2491.4,2490.9,3.21161937]
[1748855161755,4.00210157,2491.4,2490.9,3.21161937]
[1748855161960,6.30438512,2491.4,2490.9,3.21161937]
[1748855162161,6.30438512,2491.4,2491.0,3.21155473]
[1748855162396,3.09328355,2491.4,2491.1,3.21142177]
[1748855162617,3.09328355,2491.4,2490.5,0.7613]
[1748855162618,6.80673397,2491.3,2490.5,0.7613]
[1748855162821,3.09328355,2491.4,2490.1,11.88770538]
[1748855162822,8.0,2490.5,2490.1,11.88770538]
[1748855162997,8.0,2490.5,2490.1,11.88772099]
[1748855163298,11.21077601,2490.7,2490.2,3.21249955]
[1748855163503,5.0415,2490.8,2490.2,3.21259336]
[1748855163815,4.216,2490.8,2490.7,3.21194844]
[1748855164018,4.216,2490.8,2490.4,3.21227814]
[1748855164313,4.216,2490.8,2490.5,3.21210348]
[1748855164314,4.61102891,2490.8,2490.5,3.21210348]
[1748855164508,0.39502891,2490.8,2490.4,3.21227861]
[1748855164716,0.39502891,2490.8,2490.2,3.21253519]
[1748855164717,7.56761303,2490.8,2490.2,3.21253519]
[1748855165031,7.56761303,2490.8,2490.3,4.34346282]
[1748855165032,0.8075,2490.7,2490.3,4.34346282]
[1748855165239,8.8075,2490.7,2490.3,1.131]
[1748855165536,12.0194596,2490.7,2490.3,4.34338352]
[1748855165732,12.0194596,2490.7,2490.3,1.131]
[1748855166013,8.8075,2490.7,2490.3,4.34345757]
[1748855166174,8.8075,2490.7,2490.4,3.21232048]
[1748855166374,8.8075,2490.7,2490.3,1.131]
[1748855166573,12.01948073,2490.7,2490.3,1.131]
[1748855167317,8.0,2490.5,2490.3,1.131]
[1748855167919,11.21222064,2490.5,2490.3,1.131]
[1748855168212,11.21233536,2490.4,2490.3,1.131]
[1748855168417,11.21233536,2490.4,2490.1,0.01]
[1748855168418,4.04309336,2490.2,2490.1,0.01]
[1748855168639,24.23463667,2490.2,2490.1,0.01]
[1748855168861,21.82563667,2490.2,2490.1,0.01]
[1748855171643,26.04163667,2490.2,2490.1,0.01]
[1748855171844,13.82563667,2490.2,2490.1,0.01]
[1748855172047,18.04163667,2490.2,2490.1,0.01]
[1748855172347,3.21387655,2489.3,2489.1,0.01]
[1748855172658,8.0,2489.2,2489.1,0.01]
[1748855172940,8.39295278,2489.2,2489.1,0.01]
[1748855173347,0.39295278,2489.2,2489.1,0.01]
[1748855173528,12.03787833,2489.4,2489.1,0.01]
[1748855173844,6.80673397,2489.2,2489.1,0.01]
[1748855174149,8.0,2489.3,2489.1,0.01]
[1748855174306,11.2137577,2489.3,2489.1,0.01]
[1748855174508,3.21388397,2489.2,2489.1,0.01]
[1748855174710,18.82261794,2489.2,2489.1,0.01]
[1748855174949,23.04415422,2489.2,2489.1,0.01]
[1748855177053,23.04415422,2489.2,2488.1,3.22523513]
[1748855177054,0.7631,2488.4,2488.1,0.01]
[1748855177356,11.21517562,2488.2,2488.1,0.01]
[1748855177573,8.0,2488.2,2488.1,0.01]
[1748855178326,0.7631,2488.4,2488.1,0.01]
[1748855178566,8.0,2488.2,2488.1,0.01]
[1748855178891,8.816,2488.7,2488.1,0.01]
[1748855179155,8.0,2488.5,2488.1,0.01]
[1748855179457,0.55,2488.5,2488.1,0.01]
[1748855179762,3.21512053,2488.3,2488.1,0.01]
[1748855179921,8.816,2488.2,2488.1,0.01]
[1748855180326,0.816,2488.2,2488.1,0.01]
[1748855180520,0.55,2488.5,2488.1,0.01]
[1748855180521,0.8057,2488.5,2488.1,0.01]
[1748855180949,3.21499625,2488.4,2488.1,0.01]
[1748855181125,9.94563828,2488.4,2488.1,0.01]
[1748855182260,3.21508531,2488.3,2488.1,0.01]
[1748855182561,3.21512415,2488.3,2488.1,0.01]
[1748855182758,3.21517562,2488.2,2488.1,0.01]
[1748855183058,8.80707562,2488.2,2488.1,0.01]